Cogmind - Beta 13 @@@ ROGUE MODE // 2024.04.17 @ 12:25:54 Player: monkeman Result: Destroyed by Y-45 Defender with Heavy Assault Rifle Performance ------------- Evolutions (0) 0 Regions Visited (3) 600 Robots Destroyed (37) 185 Value Destroyed (993) 993 Prototype IDs (0) 0 Alien Tech Used (0) 0 Bonus (0) 0 TOTAL SCORE: 1778 Bonus ------- None Cogmind --------- Core Integrity 0/250 Matter 28/300 Energy 200/200 System Corruption 0% Temperature Cool (49) Movement Rolling (110) Location -8/Recycling Parts ------- > --- POWER (1) -------- Subdweller Power Source > --- PROPULSION (2) --- Improved Treads Subdweller Monowheel > --- UTILITY (2) ------ Scrap Engine > --- WEAPON (2) ------- Autogun Battle Cannon > --- INVENTORY (5) ---- Autogun Battle Rifle Subdweller Shrapnel Launcher Dirty Datajack (20) Peak State ------------ > --- POWER ------------ Subdweller Power Source > --- PROPULSION ------- Improved Treads Subdweller Monowheel > --- UTILITY ---------- Scrap Engine > --- WEAPON ----------- Autogun Battle Rifle > --- INVENTORY -------- Subdweller Laser Autogun Subdweller Shrapnel Launcher Subdweller Shrapnel Launcher Flamer [Rating: 27] Favorites ----------- Power Improved Ion Engine Engine Improved Ion Engine Propulsion Improved Treads Treads Improved Treads Leg Aluminum Leg Wheel Subdweller Monowheel Utility Huge Storage Unit Device Structural Scanner Storage Huge Storage Unit Protection Scrap Shield Weapon Battle Cannon Energy Gun EM Pulse Gun Ballistic Gun Barrage Gun Ballistic Cannon Battle Cannon Launcher Subdweller Shrapnel Launcher Build | -11 -10 -10 -8 ------- Run | Yrd Mat Sub Rec Slots Evolved . | . . . . Power . | . . . . Propulsion . | . . . . Utility . | . . . . Weapon . | . . . . Parts Attached 50 | 6 14 28 2 Power 3 | 1 1 1 . Engine 3 | 1 1 1 . Core . | . . . . Reactor . | . . . . Propulsion 10 | 2 3 5 . Treads 6 | . 2 4 . Leg 3 | 2 1 . . Wheel 1 | . . 1 . Hover . | . . . . Flight . | . . . . Utility 18 | 1 5 11 1 Device 3 | . 1 1 1 Storage 7 | 1 4 2 . Processor . | . . . . Hackware . | . . . . Protection 8 | . . 8 . Artifact . | . . . . Weapon 19 | 2 5 11 1 Energy Gun 3 | 1 2 . . Energy Cannon . | . . . . Ballistic Gun 8 | 1 1 6 . Ballistic Cannon 4 | . . 3 1 Launcher 4 | . 2 2 . Special Weapon . | . . . . Impact Weapon . | . . . . Slashing Weapon . | . . . . Piercing Weapon . | . . . . Special Melee Weapon . | . . . . Unidentified Prototypes . | . . . . Parts Lost 11 | . 2 9 . Power 1 | . . 1 . Propulsion 2 | . . 2 . Utility 3 | . . 3 . Weapon 5 | . 2 3 . Highest Loss Streak 3 | . 2 3 . To Critical Strikes . | . . . . Average Slot Usage (%) 91 | . 96 90 85 Engine 13 | . 14 13 14 Treads 23 | . 16 26 14 Leg 2 | . 11 . . Device 4 | . 11 1 14 Storage 8 | . 14 7 . Protection 8 | . . 11 . Energy Gun 4 | . 13 1 . Ballistic Gun 15 | . 14 15 18 Ballistic Cannon 8 | . . 10 9 Naked Turns . | . . . . Heaviest Build 98 | 13 52 98 12 Greatest Support 46 | 20 40 46 20 Greatest Overweight (x) 4 | 2 1 4 . Average Overweight (x) . | . . . . Largest Inventory Capacity 25 | 8 20 25 25 Average Capacity 14 | 7 14 14 5 Most Carried 24 | 5 20 24 22 Average Carried 11 | 3 10 11 4 Final Capacity 25 | 8 20 25 5 Final Carried 22 | 5 20 22 4 Scrap Engine Consumption 10 | . . . 10 Class Distribution -------------------- 89% | Mutant 10% | Derelict-Mutant Dominant Class ---------------- Mutant | -10/Materials Mutant | -10/Subcaves Mutant | -8/Recycling Resources | -11 -10 -10 -8 ----------- Run | Yrd Mat Sub Rec Matter Collected 1173 | 186 175 812 . Remotely . | . . . . Salvage Created 926 | . 368 558 . Parts 74 | . 26 48 . Haulers Intercepted 1 | . 1 . . Recyclers Shooed 4 | . 1 . 3 Parts Field Recycled . | . . . . Retrieved Matter . | . . . . Parts Self-Destructed 18 | . . 18 . Prevented . | . . . . Kills | -11 -10 -10 -8 ------- Run | Yrd Mat Sub Rec Combat Hostiles Destroyed 31 | . 11 20 . Guns 18 | . 5 13 . Cannons 4 | . . 4 . AOE 9 | . 6 3 . Classes Destroyed 7 | . 5 2 . Hauler 1 | . 1 . . Operator 2 | . 2 . . Turret 2 | . . 2 . Watcher 1 | . 1 . . Swarmer 12 | . 6 6 . Grunt 5 | . 5 . . Subdweller 14 | . . 14 . Best Kill Streak 4 | . 4 3 . Combat Bots Only 3 | . 3 3 . Max Kills in Single Turn 3 | . 3 3 . Gunslinging . | . . . . Exploded 3 | . 3 3 . Melee . | . . . . Uniques/NPCs Destroyed . | . . . . Combat | -11 -10 -10 -8 -------- Run | Yrd Mat Sub Rec Hostile Shots Fired 199 | . 34 161 4 Missed 57 | . 9 47 1 Damage Taken 2582 | . 429 2110 43 Core 250 | . 84 153 13 Absorbed by Shields . | . . . . Redirected to Shielding 4 | . . 4 . Core Remaining (%) 100 | 100 . . . Volleys Fired 128 | . 39 84 5 Largest 2 | . 2 2 2 Hottest 70 | . 60 70 62 Shots Fired 241 | . 69 162 10 Gun 166 | . 66 95 5 Cannon 66 | . . 61 5 Launcher 9 | . 3 6 . Special . | . . . . Kinetic 199 | . 39 150 10 Thermal . | . . . . Explosive 3 | . 3 . . Electromagnetic 39 | . 27 12 . Robot Hit Streak 15 | . 7 15 15 Robot Miss Streak 7 | . 5 7 6 Penetration Max . | . . . . Secondary Targets 1 | . 1 . . Max Gunslinging Chain 1 | . 1 . . Shots Hit Robots 133 | . 35 95 3 Core Hits 62 | . 22 40 . Critical Kills 1 | . . 1 . Critical Parts Destroyed 1 | . . 1 . Critical Strikes 7 | . 1 6 . Destroy 3 | . . 3 . Blast 3 | . . 3 . Corrupt 1 | . 1 . . Melee Attacks . | . . . . Impact . | . . . . Slashing . | . . . . Piercing . | . . . . Sneak Attacks . | . . . . Combat Hostiles . | . . . . Follow-up Attacks . | . . . . Damage Inflicted 2911 | . 820 2033 58 Guns 1392 | . 364 996 32 Cannons 758 | . . 732 26 Explosions 742 | . 437 305 . Melee . | . . . . Ramming 19 | . 19 . . Kinetic 2149 | . 176 1915 58 Thermal 192 | . 192 . . Explosive 245 | . 245 . . Electromagnetic 306 | . 188 118 . Impact . | . . . . Slashing . | . . . . Piercing . | . . . . Highest Corruption . | . . . . Average Corruption . | . . . . Corruption Purged . | . . . . Corruption Blocked . | . . . . Overload Shots . | . . . . Overflow Damage 39 | . 13 26 . Projectiles . | . . . . Explosions 39 | . 13 26 . Melee . | . . . . Knockbacks 8 | . . 8 . Impact . | . . . . Kinetic 8 | . . 8 . Secondary . | . . . . Self-Inflicted Damage 276 | . 157 119 . Shots 7 | . 4 3 . Rammed 2 | . 2 . . Targets Rammed 2 | . 2 . . Kicked . | . . . . Crushed . | . . . . Highest Temperature 148 | . 148 17 49 Average Temperature 33 | . 37 4 19 Received Heat Transfer 714 | . 114 564 36 Siege Activations . | . . . . Robots Corrupted . | . . . . Combat Hostiles . | . . . . Parts Fried . | . . . . Impact Corruptions . | . . . . Robots Melted . | . . . . Combat Hostiles . | . . . . Parts Melted 1 | . . 1 . Heat Transferred 300 | . 300 . . Parts Sabotaged . | . . . . Parts Stolen . | . . . . Parts Stripped . | . . . . Power Chain Reactions 2 | . 2 . . Alert | -11 -10 -10 -8 ------- Run | Yrd Mat Sub Rec Peak Influence 376 | . 314 . 376 Initial 376 | . . . 376 Average 145 | . 145 . 376 Maximum Alert Level 1 | . 1 . 1 Low Security (%) 77 | 100 78 . . Level 1 22 | . 21 . 100 Level 2 . | . . . . Level 3 . | . . . . Level 4 . | . . . . Level 5 . | . . . . High Security . | . . . . Max Security . | . . . . Squads Dispatched 2 | . 2 . . Investigation . | . . . . Extermination . | . . . . Reinforcement 2 | . 2 . . Assault . | . . . . Garrison . | . . . . Intercept . | . . . . Searches Triggered . | . . . . Construction Impeded . | . . . . Haulers Reinforced . | . . . . Active Scanning Responses . | . . . . Cargo Convoy Interrupts . | . . . . Stealth | -11 -10 -10 -8 --------- Run | Yrd Mat Sub Rec Distress Signals 1 | . . . 1 Communications Jammed . | . . . . Distress Signals . | . . . . Times Spotted 71 | . 23 47 1 Peak Tracking Total 6 | . 4 6 1 Tactical Retreats 8 | . . 8 . Traps | -11 -10 -10 -8 ------- Run | Yrd Mat Sub Rec Traps Triggered 1 | . . 1 . Indirectly . | . . . . Trap Hack Attempts . | . . . . Triggered . | . . . . Disarmed . | . . . . Reprogrammed . | . . . . Reused . | . . . . Traps Extracted . | . . . . Installed . | . . . . Triggered . | . . . . Machines | -11 -10 -10 -8 ---------- Run | Yrd Mat Sub Rec Machines Disabled 6 | . 2 4 . Max in Single Turn 1 | . 1 1 . Machines Repaired . | . . . . Machines Dismantled . | . . . . Machines Sabotaged . | . . . . Overloaded Fab Kills . | . . . . Hacking | -11 -10 -10 -8 --------- Run | Yrd Mat Sub Rec Machines Accessed 6 | . 5 1 . Terminals 5 | . 5 . . Fabricators . | . . . . Repair Stations . | . . . . Recycling Units . | . . . . Scanalyzers . | . . . . Garrison Access . | . . . . Total Hacks 14 | . 12 2 . Successful 11 | . 9 2 . Failed 3 | . 3 . . Catastrophic . | . . . . Database Lockouts . | . . . . Manual 6 | . 6 . . Terminals 12 | . 12 . . Fabricators . | . . . . Repair Stations . | . . . . Recycling Units . | . . . . Scanalyzers . | . . . . Garrison Access . | . . . . Terminal Hacks 10 | . 8 2 . Record 2 | . . 2 . Robot Analysis 2 | . 2 . . Locate Traps 4 | . 4 . . Hauler Manifests 1 | . 1 . . Zone Layout 1 | . 1 . . Fabricator Hacks . | . . . . Repair Station Hacks . | . . . . Recycling Unit Hacks . | . . . . Scanalyzer . | . . . . Garrison Access Hacks . | . . . . Unauthorized Hacks 1 | . 1 . . Terminals 1 | . 1 . . Botnet 1 | . 1 . . Fabricators . | . . . . Repair Stations . | . . . . Recycling Units . | . . . . Scanalyzers . | . . . . Garrison Access . | . . . . Data Cores Recovered 1 | . 1 . . Used 1 | . 1 . . Hacking Detections 5 | . 5 . . Full Trace Events . | . . . . Feedback Events . | . . . . Feedback Blocked . | . . . . Robot Schematics Acquired . | . . . . Robots Built . | . . . . Authchips . | . . . . Time . | . . . . Total Robot Build Rating . | . . . . Part Schematics Acquired . | . . . . Parts Built . | . . . . Authchips . | . . . . Time . | . . . . Total Part Build Rating . | . . . . Parts Repaired . | . . . . Time . | . . . . Parts Recycled . | . . . . Recycled Matter . | . . . . Retrieved Matter . | . . . . Retrieved Components . | . . . . Parts Scanalyzed . | . . . . Part Schematics Acquired . | . . . . Parts Damaged . | . . . . Bothacking | -11 -10 -10 -8 ------------ Run | Yrd Mat Sub Rec Used RIF Installer . | . . . . Robots Hacked . | . . . . Non-combat . | . . . . Combat . | . . . . Robot Hacks Applied . | . . . . Relay Couplers Released . | . . . . Fabnet Peak Effective % . | . . . . Robots Rewired . | . . . . Allies Hacked . | . . . . Hacks Repelled . | . . . . Allies | -11 -10 -10 -8 -------- Run | Yrd Mat Sub Rec Total Allies . | . . . . Largest Group . | . . . . Highest-Rated Group . | . . . . Highest-Rated Ally . | . . . . Total Orders . | . . . . Ally Attacks . | . . . . Total Damage . | . . . . Kills . | . . . . Allies Corrupted . | . . . . Allies Melted . | . . . . Intel | -11 -10 -10 -8 ------- Run | Yrd Mat Sub Rec Robot Analysis Total 2 | . 2 . . Derelict Logs Recovered . | . . . . Drone Launches . | . . . . Drone Recoveries . | . . . . Exploration | -11 -10 -10 -8 ------------- Run | Yrd Mat Sub Rec Turns Passed 5108 | 64 1218 3789 37 Spaces Moved 2308 | 39 631 1623 15 Core 17 | 17 . . . Treads 1862 | . 332 1530 . Legs 321 | 22 299 . . Wheels 108 | . . 93 15 Hover . | . . . . Flight . | . . . . Fastest Speed 50 | 50 120 150 110 Average Speed 194 | 123 164 208 110 Slowest Speed 560 | 190 240 560 110 Overloaded Moves . | . . . . Propulsion Burnouts . | . . . . Robots Hopped . | . . . . Cave-ins Triggered . | . . . . Exploration Rate (%) 39 | 4 88 61 3 Regions Visited 3 Branch Regions 2 Pre-discovered Areas . | . . . . Known Exits Taken . | . . . . Unknown Exits Taken 3 | 1 1 1 . Scrap Searched 7 | . . 7 . Spaces Dug . | . . . . Terrain Destroyed 87 | . 13 74 . Melee . | . . . . Projectile 6 | . . 6 . AOE 81 | . 13 68 . Terrain Rammed . | . . . . Walls Destroyed . | . . . . Machines Disabled . | . . . . Actions | -11 -10 -10 -8 --------- Run | Yrd Mat Sub Rec Total 2712 | 51 748 1884 29 Wait 79 | 2 29 48 . Move 2305 | 38 630 1622 15 Hop . | . . . . Pick Up 80 | 5 24 49 2 Fast Attach 17 | 6 1 9 1 Attach 10 | . 2 8 . Detach . | . . . . Swap 23 | . 11 11 1 Drop 62 | . 10 47 5 Fire 128 | . 39 84 5 Melee . | . . . . Ram . | . . . . Kick . | . . . . Crush 2 | . 2 . . Escape Stasis . | . . . . Rewire . | . . . . Trap . | . . . . Miscellaneous 6 | . . 6 . Route ------- -11/Scrapyard -10/Materials (discovered 4 exits: [*Mat x3] / *Sub) -10/Subcaves (discovered 3 exits: [*Mat x2] / [*Rec]) -8/Recycling History --------- Turn | Location | Event 17 | -11/Scrapyard | Discovered new exit (range 14) 65 | -11/Scrapyard | Entered Materials 318 | -10/Materials | Build established: Mutant 339 | -10/Materials | Discovered new exit (range 12) 498 | -10/Materials | Discovered new exit (range 16) 995 | -10/Materials | Discovered new exit (range 7) 1264 | -10/Materials | Discovered new exit (range 8) 1283 | -10/Materials | Entered Subcaves 1503 | -10/Subcaves | Shifting Twisted Machinery released Sub. Laser 1668 | -10/Subcaves | Shifting Twisted Machinery released Scrap Shield 1732 | -10/Subcaves | Shifting Twisted Machinery released Sub. Laser 1789 | -10/Subcaves | Shifting Twisted Machinery released Spk. Treads 1857 | -10/Subcaves | A swath of the cavern ceiling suddenly collapsed 1939 | -10/Subcaves | Visited Clippyterm 2013 | -10/Subcaves | A swath of the cavern ceiling suddenly collapsed 2298 | -10/Subcaves | Ambushed by Subdweller buried in earth 2299 | -10/Subcaves | Ambushed by angry Subdweller bent on revenge 2312 | -10/Subcaves | Ambushed by Subdweller buried in earth 2314 | -10/Subcaves | Core integrity fell below 50% 3538 | -10/Subcaves | Discovered new exit (range 14) 3725 | -10/Subcaves | Lost 3 parts (1n1u1w) 3846 | -10/Subcaves | Discovered new exit (range 7) 4365 | -10/Subcaves | Core integrity fell below 20% 4536 | -10/Subcaves | Discovered new exit (range 15) 5072 | -10/Subcaves | Entered Recycling 5073 | -8/Recycling | Found Scrap Engine 5109 | -8/Recycling | Destroyed by Y-45 Defender with Heavy Assault Rifle Last Messages --------------- 05072_ Dropped Core Shielding. 05073_ Dropped Huge Storage Unit. 05073_ Acquired Scrap Engine. 05076_ Scrap Engine consumes Sub. Beam Cannon. 05077_ Scrap Engine consumes Autogun. 05078_ Scrap Engine consumes Sub. Laser. 05080_ Scrap Engine consumes Core Shielding. 05083_ Scrap Engine consumes Weapon Shielding. 05084_ Scrap Engine consumes Sub. Laser. 05084_ Dropped Sub. Shrapnel Launcher. 05084_ Dropped Flamer. 05085_ Dropped Sub. Laser. 05086_ Acquired Battle Cannon. 05090_ Acquired Dirty Datajack. 05093_ Scrap Engine consumes Lgt. EM Pulse Cannon. 05098_ R-06 Scavenger sends out distress signal. 05104_ Scrap Engine consumes Lgt. EM Pulse Cannon. 05106_ Critical hit (Burn: +37). Map ----- +----------------------------------------------------+ | ????????????????????????????? | | ????????????????????????????? | | ????????????????????????????? | | ????????????????????????????? | | ????????????????????????????? | | ????????????????????????????? | | ????????????????????????????? | | ????????????????????????????? | | ????????????????????????????? | | ????????????????????????????? | | ????????????????????????????? | | ????????????????????????????? | | ?????#####?#????????????????? | | ????? ????????????????? | | ????# ?????????????????? | | ????# ?????????????????? | | ????# ??????????????????? | | ????# ??????????????????? | | ????# ???????????????????? | | ???? #???????????????????? | | ????# #???????????????????? | | ????# #???????????????????? | | ????# % #???????????????????? | | ????# #???????????????????? | | ??###Y #???????????????????? | | ??# @ #???????????????????? | | ??# ! #???????????????????? | | ??# |! *+???????????????????? | | ??###/! #???????????????????? | | ????#!]!#???????????????????? | | ????#|![#???????????????????? | | ????#|[ #???????????????????? | | ????# #???????????????????? | | ????#####???????????????????? | | ????????????????????????????? | | ????????????????????????????? | | ????????????????????????????? | | ????????????????????????????? | | | | | | | | | | | | | | | | | | | | | | | | | +----------------------------------------------------+ Best States ------------- Heat Dissipation 25 Coolant Potential 50 Energy Generation 15 Energy Capacity 265 Matter Stores 300 Matter Capacity 300 Sight Range 16 Terrain Scan Density 10 Armor Coverage 800 Resistance: KI 10 Core Shielding 20 Evasion (%) 55 Recoil Reduction 2 Item Schematics ----------------- None Robot Schematics ------------------ None Fabricated ------------ Nothing Alien Tech Used ----------------- None Achievements -------------- None Challenges ------------ None Game ------ Seed WeaponDeliveryRecalibrator Manual? 0 Play Time 00:27:45 Cumulative 31.8 hours Start 2024.04.17 @ 11:58:45 End 2024.04.17 @ 12:25:54 Sessions 1 Manual Loads 0 Difficulty Rogue Special Mode None Game No. 38 Rogue 38 Adventurer 0 Explorer 0 Win Type - Total 1 Types 1/0/0/0/0/0/0/0/0 Lore% 19 Gallery% 36 Achievement% 26 Wizard Run 0 Options --------- Layout 1 ASCII 0 Keyboard 0 Movement Mouse Keybinds 0 Fullscreen 1 Font 24/Smallcaps Map View 50x35 Zoom Use 0% Tactical HUD 1 Map Filters NONE Filters NONE Steam 1 RUN: 1aa15520-68d9-407f-8a35-ee5faaa4de8e